[Event "Late Titled Tuesday Blitz February 8 2022"]
[White "Quirke, Jeffrey"]
[Black "Bauer, Thomas"]
[WhiteFideId "2013029"]
[BlackFideId "1639293"]
[WhiteElo "2274"]
[BlackElo "2220"]
[Result "0-1"]
[Round "10"]
[TimeControl "180+1"]
[Date "2022.02.09"]
[WhiteClock "0:00:01"]
[BlackClock "0:00:30"]

1. d4 {[%clk 0:03:00]}  e6 {[%clk 0:02:56]} 2. c4 {[%clk 0:03:00]}  c5 {[%clk 0:02:54]} 3. d5 {[%clk 0:03:00]}  g6 {[%clk 0:02:54]} 4. Nc3 {[%clk 0:02:59]}  Bg7 {[%clk 0:02:52]} 5. e4 {[%clk 0:03:00]}  d6 {[%clk 0:02:49]} 6. Bd3 {[%clk 0:02:58]}  Nd7 {[%clk 0:02:41]} 7. h3 {[%clk 0:02:57]}  a6 {[%clk 0:02:39]} 8. a4 {[%clk 0:02:57]}  Ne5 {[%clk 0:02:36]} 9. Be2 {[%clk 0:02:54]}  f5 {[%clk 0:02:35]} 10. dxe6 {[%clk 0:02:45]}  Bxe6 {[%clk 0:02:34]} 11. exf5 {[%clk 0:02:42]}  Bxf5 {[%clk 0:02:32]} 12. Nf3 {[%clk 0:02:36]}  Ne7 {[%clk 0:02:27]} 13. O-O {[%clk 0:02:33]}  O-O {[%clk 0:02:26]} 14. Nxe5 {[%clk 0:02:10]}  dxe5 {[%clk 0:02:21]} 15. Bf3 {[%clk 0:02:00]}  Nc6 {[%clk 0:02:14]} 16. Bd5+ {[%clk 0:01:54]}  Kh8 {[%clk 0:02:13]} 17. Be3 {[%clk 0:01:49]}  Nd4 {[%clk 0:02:06]} 18. Ne4 {[%clk 0:01:12]}  Qc7 {[%clk 0:01:55]} 19. Ng5 {[%clk 0:01:01]}  h6 {[%clk 0:01:51]} 20. Bxd4 {[%clk 0:00:56]}  cxd4 {[%clk 0:01:39]} 21. Ne6 {[%clk 0:00:56]}  Bxe6 {[%clk 0:01:39]} 22. Bxe6 {[%clk 0:00:56]}  Rae8 {[%clk 0:01:32]} 23. Bd5 {[%clk 0:00:54]}  e4 {[%clk 0:01:15]} 24. Qb3 {[%clk 0:00:35]}  Re7 {[%clk 0:01:10]} 25. Rae1 {[%clk 0:00:33]}  Qf4 {[%clk 0:01:05]} 26. Qb4 {[%clk 0:00:20]}  Rfe8 {[%clk 0:00:58]} 27. c5 {[%clk 0:00:14]}  Qf5 {[%clk 0:00:52]} 28. Qc4 {[%clk 0:00:13]}  Rd8 {[%clk 0:00:50]} 29. Bxe4 {[%clk 0:00:06]}  Rxe4 {[%clk 0:00:49]} 30. Rxe4 {[%clk 0:00:06]}  Qxe4 {[%clk 0:00:50]} 31. b4 {[%clk 0:00:06]}  Qe7 {[%clk 0:00:40]} 32. b5 {[%clk 0:00:06]}  axb5 {[%clk 0:00:40]} 33. axb5 {[%clk 0:00:06]}  Rc8 {[%clk 0:00:39]} 34. Rc1 {[%clk 0:00:06]}  Qg5 {[%clk 0:00:36]} 35. c6 {[%clk 0:00:05]}  bxc6 {[%clk 0:00:36]} 36. bxc6 {[%clk 0:00:05]}  Be5 {[%clk 0:00:36]} 37. Re1 {[%clk 0:00:02]}  Qf4 {[%clk 0:00:36]} 38. g3 {[%clk 0:00:01]}  Qf6 {[%clk 0:00:35]} 39. Qd5 {[%clk 0:00:01]}  Bc7 {[%clk 0:00:30]} 0-1


[Site "https://www.chess.com"]

[Event "Late Titled Tuesday Blitz February 8 2022"]
[White "Riehle, Marco"]
[Black "Migot, Tangi"]
[WhiteFideId "12904392"]
[BlackFideId "662445"]
[WhiteElo "2462"]
[BlackElo "2543"]
[Result "1-0"]
[Round "10"]
[TimeControl "180+1"]
[Date "2022.02.09"]
[WhiteClock "0:01:06"]
[BlackClock "0:00:14"]

1. e4 {[%clk 0:03:00]}  c6 {[%clk 0:03:00]} 2. c4 {[%clk 0:02:52]}  Na6 {[%clk 0:03:01]} 3. d4 {[%clk 0:02:50]}  d5 {[%clk 0:03:00]} 4. cxd5 {[%clk 0:02:50]}  cxd5 {[%clk 0:03:00]} 5. exd5 {[%clk 0:02:48]}  Nc7 {[%clk 0:03:00]} 6. Nc3 {[%clk 0:02:48]}  Nf6 {[%clk 0:02:59]} 7. Nf3 {[%clk 0:02:45]}  Nfxd5 {[%clk 0:02:59]} 8. Bc4 {[%clk 0:02:43]}  e6 {[%clk 0:02:52]} 9. O-O {[%clk 0:02:40]}  Be7 {[%clk 0:02:48]} 10. Ne5 {[%clk 0:02:32]}  O-O {[%clk 0:02:47]} 11. Qf3 {[%clk 0:02:27]}  Nb6 {[%clk 0:02:41]} 12. Bd3 {[%clk 0:02:24]}  Qxd4 {[%clk 0:02:32]} 13. Bf4 {[%clk 0:02:23]}  Ncd5 {[%clk 0:02:26]} 14. Bg3 {[%clk 0:02:20]}  Bf6 {[%clk 0:02:06]} 15. Rad1 {[%clk 0:02:13]}  Bxe5 {[%clk 0:02:06]} 16. Bxh7+ {[%clk 0:02:04]}  Kxh7 {[%clk 0:02:04]} 17. Rxd4 {[%clk 0:02:03]}  Bxd4 {[%clk 0:02:03]} 18. Qe4+ {[%clk 0:01:58]}  Kg8 {[%clk 0:01:59]} 19. Qxd4 {[%clk 0:01:58]}  Bd7 {[%clk 0:01:57]} 20. Ne4 {[%clk 0:01:55]}  Rac8 {[%clk 0:01:50]} 21. h3 {[%clk 0:01:52]}  Rc2 {[%clk 0:01:47]} 22. Ng5 {[%clk 0:01:52]}  f6 {[%clk 0:01:42]} 23. Qd3 {[%clk 0:01:50]}  fxg5 {[%clk 0:01:32]} 24. Qxc2 {[%clk 0:01:49]}  Rc8 {[%clk 0:01:31]} 25. Qe4 {[%clk 0:01:43]}  Rc4 {[%clk 0:01:28]} 26. Qe5 {[%clk 0:01:39]}  g4 {[%clk 0:01:27]} 27. hxg4 {[%clk 0:01:35]}  Rxg4 {[%clk 0:01:28]} 28. Qb8+ {[%clk 0:01:29]}  Kh7 {[%clk 0:01:19]} 29. Qxb7 {[%clk 0:01:28]}  Rc4 {[%clk 0:01:04]} 30. Qxa7 {[%clk 0:01:27]}  Ra4 {[%clk 0:01:03]} 31. Qb7 {[%clk 0:01:22]}  Rxa2 {[%clk 0:01:03]} 32. Be5 {[%clk 0:01:18]}  Ra8 {[%clk 0:00:54]} 33. Rd1 {[%clk 0:01:11]}  Rd8 {[%clk 0:00:30]} 34. Bc7 {[%clk 0:01:06]}  Bc8 {[%clk 0:00:27]} 35. Qc6 {[%clk 0:01:06]}  Rd6 {[%clk 0:00:14]} 1-0


[Site "https://www.chess.com"]

[Event "Late Titled Tuesday Blitz February 8 2022"]
[White "Sarkar, Justin"]
[Black "Baker, Chris W"]
[WhiteFideId "2010011"]
[BlackFideId "401676"]
[WhiteElo "2038"]
[BlackElo "2144"]
[Result "0-1"]
[Round "10"]
[TimeControl "180+1"]
[Date "2022.02.09"]
[WhiteClock "0:00:02"]
[BlackClock "0:01:31"]

1. d4 {[%clk 0:03:00]}  e6 {[%clk 0:02:59]} 2. c4 {[%clk 0:02:56]}  f5 {[%clk 0:02:59]} 3. g3 {[%clk 0:02:47]}  Nf6 {[%clk 0:02:59]} 4. Bg2 {[%clk 0:02:45]}  Be7 {[%clk 0:02:59]} 5. Nf3 {[%clk 0:02:40]}  O-O {[%clk 0:02:59]} 6. O-O {[%clk 0:02:39]}  d6 {[%clk 0:02:59]} 7. Nc3 {[%clk 0:02:37]}  Ne4 {[%clk 0:02:59]} 8. Nxe4 {[%clk 0:02:26]}  fxe4 {[%clk 0:02:59]} 9. Nd2 {[%clk 0:02:25]}  d5 {[%clk 0:02:59]} 10. f3 {[%clk 0:02:18]}  Nc6 {[%clk 0:02:58]} 11. e3 {[%clk 0:02:06]}  exf3 {[%clk 0:02:56]} 12. Rxf3 {[%clk 0:01:53]}  Bf6 {[%clk 0:02:51]} 13. Rb1 {[%clk 0:01:19]}  e5 {[%clk 0:02:46]} 14. cxd5 {[%clk 0:01:16]}  Nb4 {[%clk 0:02:10]} 15. Qb3 {[%clk 0:01:01]}  a5 {[%clk 0:02:07]} 16. a3 {[%clk 0:00:07]}  Na6 {[%clk 0:02:06]} 17. d6+ {[%clk 0:00:04]}  Kh8 {[%clk 0:02:06]} 18. dxe5 {[%clk 0:00:03]}  Bxe5 {[%clk 0:02:02]} 19. dxc7 {[%clk 0:00:02]}  Bxc7 {[%clk 0:01:51]} 20. Rxf8+ {[%clk 0:00:02]}  Qxf8 {[%clk 0:01:50]} 21. Nf3 {[%clk 0:00:02]}  Bf5 {[%clk 0:01:43]} 22. Ra1 {[%clk 0:00:02]}  Nc5 {[%clk 0:01:42]} 23. Qb5 {[%clk 0:00:02]}  Bd3 {[%clk 0:01:31]} 0-1


[Site "https://www.chess.com"]

[Event "Late Titled Tuesday Blitz February 8 2022"]
[White "Shevchenko, Kirill"]
[Black "Svane, Rasmus"]
[WhiteFideId "14129574"]
[BlackFideId "4657101"]
[WhiteElo "2624"]
[BlackElo "2645"]
[Result "1-0"]
[Round "10"]
[TimeControl "180+1"]
[Date "2022.02.08"]
[WhiteClock "0:00:50"]
[BlackClock "0:00:04"]

1. e4 {[%clk 0:02:34]}  c6 {[%clk 0:02:58]} 2. d4 {[%clk 0:02:29]}  d5 {[%clk 0:02:58]} 3. exd5 {[%clk 0:02:30]}  cxd5 {[%clk 0:02:59]} 4. c4 {[%clk 0:02:30]}  Nf6 {[%clk 0:02:59]} 5. Nc3 {[%clk 0:02:30]}  Nc6 {[%clk 0:02:59]} 6. Nf3 {[%clk 0:02:30]}  a6 {[%clk 0:02:59]} 7. cxd5 {[%clk 0:02:15]}  Nxd5 {[%clk 0:03:00]} 8. Bd3 {[%clk 0:02:12]}  g6 {[%clk 0:02:59]} 9. Be4 {[%clk 0:02:09]}  Nxc3 {[%clk 0:02:28]} 10. bxc3 {[%clk 0:02:09]}  Bg7 {[%clk 0:02:28]} 11. O-O {[%clk 0:02:08]}  O-O {[%clk 0:02:29]} 12. Re1 {[%clk 0:02:06]}  Na5 {[%clk 0:02:22]} 13. Bg5 {[%clk 0:01:59]}  Re8 {[%clk 0:02:18]} 14. Qc1 {[%clk 0:01:54]}  Nc4 {[%clk 0:02:14]} 15. h4 {[%clk 0:01:51]}  Nd6 {[%clk 0:02:10]} 16. Bd5 {[%clk 0:01:47]}  Bf5 {[%clk 0:01:42]} 17. h5 {[%clk 0:01:41]}  Rc8 {[%clk 0:01:42]} 18. Ne5 {[%clk 0:01:34]}  gxh5 {[%clk 0:01:01]} 19. Qf4 {[%clk 0:01:31]}  Bg6 {[%clk 0:00:57]} 20. c4 {[%clk 0:01:25]}  b6 {[%clk 0:00:36]} 21. Rac1 {[%clk 0:01:21]}  Qc7 {[%clk 0:00:26]} 22. c5 {[%clk 0:01:05]}  bxc5 {[%clk 0:00:09]} 23. Rxc5 {[%clk 0:01:06]}  Qb6 {[%clk 0:00:07]} 24. Rxc8 {[%clk 0:01:03]}  Rxc8 {[%clk 0:00:08]} 25. Bxe7 {[%clk 0:01:04]}  Bxe5 {[%clk 0:00:04]} 26. Qxe5 {[%clk 0:01:02]}  Nf5 {[%clk 0:00:04]} 27. Bc5 {[%clk 0:00:59]}  Qc7 {[%clk 0:00:03]} 28. Qf6 {[%clk 0:00:56]}  Qd8 {[%clk 0:00:04]} 29. Bxf7+ {[%clk 0:00:49]}  Bxf7 {[%clk 0:00:04]} 30. Qxf5 {[%clk 0:00:50]}  Qd5 {[%clk 0:00:04]} 31. Qxc8+ {[%clk 0:00:50]} 1-0


[Site "https://www.chess.com"]

[Event "Late Titled Tuesday Blitz February 8 2022"]
[White "Shoker, Samy"]
[Black "Gomez Ledo, Roberto Carlos"]
[WhiteFideId "627143"]
[BlackFideId "3507076"]
[WhiteElo "2493"]
[BlackElo "2379"]
[Result "0-1"]
[Round "10"]
[TimeControl "180+1"]
[Date "2022.02.08"]
[WhiteClock "0:00:28"]
[BlackClock "0:00:09"]

1. Nf3 {[%clk 0:03:00]}  Nf6 {[%clk 0:02:56]} 2. g3 {[%clk 0:03:01]}  d5 {[%clk 0:02:55]} 3. Bg2 {[%clk 0:03:01]}  e6 {[%clk 0:02:54]} 4. O-O {[%clk 0:03:00]}  Be7 {[%clk 0:02:53]} 5. c4 {[%clk 0:02:59]}  O-O {[%clk 0:02:53]} 6. b3 {[%clk 0:02:59]}  b6 {[%clk 0:02:49]} 7. Bb2 {[%clk 0:02:59]}  c5 {[%clk 0:02:47]} 8. e3 {[%clk 0:03:00]}  Nc6 {[%clk 0:02:46]} 9. Nc3 {[%clk 0:03:00]}  Ba6 {[%clk 0:02:44]} 10. Qe2 {[%clk 0:02:58]}  Rc8 {[%clk 0:02:43]} 11. Rfd1 {[%clk 0:02:56]}  Qd7 {[%clk 0:02:41]} 12. Rac1 {[%clk 0:02:50]}  Rfd8 {[%clk 0:02:39]} 13. d3 {[%clk 0:02:39]}  Qb7 {[%clk 0:02:38]} 14. Nb5 {[%clk 0:02:34]}  Qb8 {[%clk 0:02:38]} 15. d4 {[%clk 0:02:26]}  dxc4 {[%clk 0:02:27]} 16. bxc4 {[%clk 0:02:27]}  Na5 {[%clk 0:02:16]} 17. Ne5 {[%clk 0:02:23]}  cxd4 {[%clk 0:02:13]} 18. Nxd4 {[%clk 0:02:15]}  Qxe5 {[%clk 0:02:06]} 19. Nc6 {[%clk 0:02:09]}  Rxd1+ {[%clk 0:02:02]} 20. Rxd1 {[%clk 0:02:10]}  Qc7 {[%clk 0:02:00]} 21. Be5 {[%clk 0:02:07]}  Qxc6 {[%clk 0:01:46]} 22. Bxc6 {[%clk 0:02:07]}  Nxc6 {[%clk 0:01:47]} 23. Bxf6 {[%clk 0:01:47]}  Bxf6 {[%clk 0:01:48]} 24. f4 {[%clk 0:01:44]}  Na5 {[%clk 0:01:40]} 25. Rd7 {[%clk 0:01:44]}  Bxc4 {[%clk 0:01:38]} 26. Qd2 {[%clk 0:01:41]}  Nc6 {[%clk 0:01:25]} 27. Qd6 {[%clk 0:01:35]}  Bd5 {[%clk 0:01:19]} 28. a4 {[%clk 0:01:18]}  h6 {[%clk 0:01:18]} 29. g4 {[%clk 0:01:14]}  Rd8 {[%clk 0:01:01]} 30. Rxd8+ {[%clk 0:01:14]}  Bxd8 {[%clk 0:00:57]} 31. Kf2 {[%clk 0:01:11]}  Be7 {[%clk 0:00:50]} 32. Qd7 {[%clk 0:01:11]}  g6 {[%clk 0:00:42]} 33. Kg3 {[%clk 0:01:09]}  Bc5 {[%clk 0:00:40]} 34. Kf2 {[%clk 0:01:07]}  Kg7 {[%clk 0:00:40]} 35. h4 {[%clk 0:01:07]}  Nb4 {[%clk 0:00:36]} 36. Qxa7 {[%clk 0:00:57]}  Nc2 {[%clk 0:00:34]} 37. Ke2 {[%clk 0:00:47]}  Bxe3 {[%clk 0:00:31]} 38. Kd3 {[%clk 0:00:45]}  Bb3 {[%clk 0:00:27]} 39. Kc3 {[%clk 0:00:45]}  Nd4 {[%clk 0:00:24]} 40. g5 {[%clk 0:00:38]}  hxg5 {[%clk 0:00:23]} 41. fxg5 {[%clk 0:00:37]}  Bd1 {[%clk 0:00:22]} 42. Kd3 {[%clk 0:00:37]}  Bg1 {[%clk 0:00:22]} 43. Qc7 {[%clk 0:00:26]}  Bxa4 {[%clk 0:00:19]} 44. Qe5+ {[%clk 0:00:25]}  Kg8 {[%clk 0:00:18]} 45. Qb8+ {[%clk 0:00:25]}  Kg7 {[%clk 0:00:18]} 46. Qe5+ {[%clk 0:00:24]}  Kh7 {[%clk 0:00:17]} 47. Qf6 {[%clk 0:00:20]}  Be8 {[%clk 0:00:14]} 48. Qe7 {[%clk 0:00:20]}  Bb5+ {[%clk 0:00:13]} 49. Kc3 {[%clk 0:00:17]}  Kg8 {[%clk 0:00:11]} 50. Qd8+ {[%clk 0:00:16]}  Kg7 {[%clk 0:00:10]} 51. Qf6+ {[%clk 0:00:17]}  Kg8 {[%clk 0:00:11]} 52. Kb2 {[%clk 0:00:17]}  Nf5 {[%clk 0:00:09]} 53. Qd8+ {[%clk 0:00:17]}  Kg7 {[%clk 0:00:09]} 54. Qf6+ {[%clk 0:00:18]}  Kg8 {[%clk 0:00:09]} 55. h5 {[%clk 0:00:18]}  Bd4+ {[%clk 0:00:08]} 56. Kb3 {[%clk 0:00:19]}  Bxf6 {[%clk 0:00:07]} 57. gxf6 {[%clk 0:00:20]}  gxh5 {[%clk 0:00:07]} 58. Kb4 {[%clk 0:00:20]}  h4 {[%clk 0:00:08]} 59. Kc3 {[%clk 0:00:21]}  h3 {[%clk 0:00:08]} 60. Kd2 {[%clk 0:00:22]}  h2 {[%clk 0:00:08]} 61. Kc3 {[%clk 0:00:23]}  h1=Q {[%clk 0:00:09]} 62. Kb4 {[%clk 0:00:24]}  Qc6 {[%clk 0:00:08]} 63. Kb3 {[%clk 0:00:25]}  Qc4+ {[%clk 0:00:08]} 64. Ka3 {[%clk 0:00:26]}  Qa4+ {[%clk 0:00:08]} 65. Kb2 {[%clk 0:00:26]}  Bc4 {[%clk 0:00:08]} 66. Kc3 {[%clk 0:00:27]}  Qb3+ {[%clk 0:00:09]} 67. Kd2 {[%clk 0:00:28]}  Qd3+ {[%clk 0:00:09]} 68. Ke1 {[%clk 0:00:28]}  Qe2# {[%clk 0:00:09]} 0-1


[Site "https://www.chess.com"]

[Event "Late Titled Tuesday Blitz February 8 2022"]
[White "Sviridov, Valery"]
[Black "Nepomniachtchi, Ian"]
[WhiteFideId "4120680"]
[BlackFideId "4168119"]
[WhiteElo "2454"]
[BlackElo "2740"]
[Result "0-1"]
[Round "10"]
[TimeControl "180+1"]
[Date "2022.02.08"]
[WhiteClock "0:00:04"]
[BlackClock "0:00:16"]

1. b3 {[%clk 0:03:00]}  d5 {[%clk 0:02:58]} 2. Bb2 {[%clk 0:03:00]}  Bg4 {[%clk 0:02:59]} 3. g3 {[%clk 0:03:00]}  e6 {[%clk 0:02:57]} 4. Bg2 {[%clk 0:03:00]}  Nf6 {[%clk 0:02:57]} 5. Nf3 {[%clk 0:03:00]}  Nbd7 {[%clk 0:02:57]} 6. O-O {[%clk 0:03:00]}  Bd6 {[%clk 0:02:57]} 7. c4 {[%clk 0:03:00]}  c6 {[%clk 0:02:57]} 8. d3 {[%clk 0:02:59]}  O-O {[%clk 0:02:57]} 9. Nbd2 {[%clk 0:02:59]}  Re8 {[%clk 0:02:58]} 10. a3 {[%clk 0:02:58]}  a5 {[%clk 0:02:58]} 11. Qc2 {[%clk 0:02:57]}  e5 {[%clk 0:02:58]} 12. h3 {[%clk 0:02:56]}  Bh5 {[%clk 0:02:56]} 13. Nh4 {[%clk 0:02:55]}  Rc8 {[%clk 0:02:55]} 14. Rfe1 {[%clk 0:02:52]}  b5 {[%clk 0:02:53]} 15. e3 {[%clk 0:02:48]}  Bb8 {[%clk 0:02:47]} 16. Rac1 {[%clk 0:02:47]}  Nb6 {[%clk 0:02:37]} 17. g4 {[%clk 0:02:42]}  Bg6 {[%clk 0:02:28]} 18. Nxg6 {[%clk 0:02:42]}  hxg6 {[%clk 0:02:28]} 19. Bc3 {[%clk 0:02:34]}  Nbd7 {[%clk 0:02:10]} 20. Bb2 {[%clk 0:02:30]}  Rc7 {[%clk 0:01:59]} 21. Bc3 {[%clk 0:02:04]}  Ra7 {[%clk 0:01:59]} 22. Bb2 {[%clk 0:01:59]}  bxc4 {[%clk 0:01:45]} 23. bxc4 {[%clk 0:01:56]}  a4 {[%clk 0:01:45]} 24. cxd5 {[%clk 0:01:49]}  cxd5 {[%clk 0:01:46]} 25. g5 {[%clk 0:01:50]}  Nh7 {[%clk 0:01:38]} 26. h4 {[%clk 0:01:50]}  Nb6 {[%clk 0:01:37]} 27. Qc6 {[%clk 0:01:47]}  Nf8 {[%clk 0:01:36]} 28. Rb1 {[%clk 0:01:46]}  Re6 {[%clk 0:01:30]} 29. Qb5 {[%clk 0:01:47]}  Nfd7 {[%clk 0:01:14]} 30. Bc3 {[%clk 0:01:44]}  e4 {[%clk 0:01:07]} 31. dxe4 {[%clk 0:01:39]}  Qc7 {[%clk 0:01:07]} 32. Bd4 {[%clk 0:01:29]}  Qh2+ {[%clk 0:01:06]} 33. Kf1 {[%clk 0:01:30]}  dxe4 {[%clk 0:01:02]} 34. Rec1 {[%clk 0:01:20]}  Qxh4 {[%clk 0:01:00]} 35. Nxe4 {[%clk 0:01:09]}  Rc7 {[%clk 0:00:52]} 36. Rxc7 {[%clk 0:01:05]}  Bxc7 {[%clk 0:00:53]} 37. Rc1 {[%clk 0:01:05]}  Be5 {[%clk 0:00:43]} 38. Bxb6 {[%clk 0:00:52]}  Nxb6 {[%clk 0:00:42]} 39. Qe2 {[%clk 0:00:48]}  Qh2 {[%clk 0:00:32]} 40. Rb1 {[%clk 0:00:42]}  Bc7 {[%clk 0:00:29]} 41. Qf3 {[%clk 0:00:33]}  Qe5 {[%clk 0:00:28]} 42. Qd1 {[%clk 0:00:30]}  Re8 {[%clk 0:00:25]} 43. Qd4 {[%clk 0:00:29]}  Qe6 {[%clk 0:00:22]} 44. Nc3 {[%clk 0:00:28]}  Rd8 {[%clk 0:00:22]} 45. Qc5 {[%clk 0:00:26]}  Qc4+ {[%clk 0:00:15]} 46. Qxc4 {[%clk 0:00:27]}  Nxc4 {[%clk 0:00:15]} 47. Rc1 {[%clk 0:00:21]}  Nxa3 {[%clk 0:00:14]} 48. Nxa4 {[%clk 0:00:21]}  Bd6 {[%clk 0:00:15]} 49. Nb6 {[%clk 0:00:18]}  Bf8 {[%clk 0:00:15]} 50. Nd5 {[%clk 0:00:18]}  Nb5 {[%clk 0:00:14]} 51. Ke2 {[%clk 0:00:18]}  Nd6 {[%clk 0:00:14]} 52. Rc7 {[%clk 0:00:16]}  Nf5 {[%clk 0:00:15]} 53. Be4 {[%clk 0:00:15]}  Nd6 {[%clk 0:00:15]} 54. Bf3 {[%clk 0:00:16]}  Re8 {[%clk 0:00:15]} 55. Rd7 {[%clk 0:00:15]}  Nf5 {[%clk 0:00:15]} 56. Bg4 {[%clk 0:00:14]}  Nd4+ {[%clk 0:00:14]} 57. Kf1 {[%clk 0:00:14]}  Nc6 {[%clk 0:00:15]} 58. Rc7 {[%clk 0:00:14]}  Ne5 {[%clk 0:00:15]} 59. Be2 {[%clk 0:00:13]}  Rd8 {[%clk 0:00:15]} 60. Nf4 {[%clk 0:00:13]}  Bd6 {[%clk 0:00:14]} 61. Rb7 {[%clk 0:00:13]}  Rc8 {[%clk 0:00:14]} 62. Nd3 {[%clk 0:00:13]}  Nc4 {[%clk 0:00:13]} 63. Bf3 {[%clk 0:00:11]}  Nd2+ {[%clk 0:00:13]} 64. Ke2 {[%clk 0:00:12]}  Nc4 {[%clk 0:00:14]} 65. Bd5 {[%clk 0:00:11]}  Ne5 {[%clk 0:00:11]} 66. Nxe5 {[%clk 0:00:12]}  Bxe5 {[%clk 0:00:12]} 67. Bxf7+ {[%clk 0:00:12]}  Kf8 {[%clk 0:00:09]} 68. Bxg6 {[%clk 0:00:12]}  Ba1 {[%clk 0:00:10]} 69. f4 {[%clk 0:00:12]}  Rc6 {[%clk 0:00:09]} 70. Be4 {[%clk 0:00:12]}  Rc8 {[%clk 0:00:09]} 71. Kf3 {[%clk 0:00:12]}  Rd8 {[%clk 0:00:09]} 72. Ra7 {[%clk 0:00:12]}  Bb2 {[%clk 0:00:09]} 73. Ra2 {[%clk 0:00:12]}  Bc1 {[%clk 0:00:09]} 74. Rc2 {[%clk 0:00:12]}  Bd2 {[%clk 0:00:08]} 75. Rc5 {[%clk 0:00:13]}  Rb8 {[%clk 0:00:08]} 76. Rf5+ {[%clk 0:00:13]}  Ke7 {[%clk 0:00:08]} 77. Re5+ {[%clk 0:00:12]}  Kf8 {[%clk 0:00:08]} 78. Bd5 {[%clk 0:00:12]}  Bc3 {[%clk 0:00:08]} 79. Rf5+ {[%clk 0:00:12]}  Ke7 {[%clk 0:00:08]} 80. Rf7+ {[%clk 0:00:12]}  Kd6 {[%clk 0:00:09]} 81. e4 {[%clk 0:00:12]}  Bd4 {[%clk 0:00:08]} 82. Kg4 {[%clk 0:00:10]}  Rh8 {[%clk 0:00:08]} 83. Kf5 {[%clk 0:00:10]}  Rh4 {[%clk 0:00:07]} 84. Rb7 {[%clk 0:00:10]}  Be3 {[%clk 0:00:08]} 85. Kg6 {[%clk 0:00:09]}  Rxf4 {[%clk 0:00:08]} 86. Kxg7 {[%clk 0:00:09]}  Bd4+ {[%clk 0:00:07]} 87. Kg6 {[%clk 0:00:09]}  Rf1 {[%clk 0:00:07]} 88. Rf7 {[%clk 0:00:09]}  Rg1 {[%clk 0:00:06]} 89. Rf5 {[%clk 0:00:10]}  Be5 {[%clk 0:00:05]} 90. Kf7 {[%clk 0:00:10]}  Ra1 {[%clk 0:00:04]} 91. Kg6 {[%clk 0:00:06]}  Ra7 {[%clk 0:00:04]} 92. Rf7 {[%clk 0:00:06]}  Ra1 {[%clk 0:00:05]} 93. Rb7 {[%clk 0:00:05]}  Rg1 {[%clk 0:00:05]} 94. Rb6+ {[%clk 0:00:06]}  Kc5 {[%clk 0:00:05]} 95. Re6 {[%clk 0:00:06]}  Bb2 {[%clk 0:00:05]} 96. Rc6+ {[%clk 0:00:06]}  Kd4 {[%clk 0:00:05]} 97. Rb6 {[%clk 0:00:05]}  Bc3 {[%clk 0:00:05]} 98. Kf5 {[%clk 0:00:04]}  Rf1+ {[%clk 0:00:05]} 99. Ke6 {[%clk 0:00:05]}  Rg1 {[%clk 0:00:06]} 100. Kf5 {[%clk 0:00:04]}  Rf1+ {[%clk 0:00:06]} 101. Kg6 {[%clk 0:00:05]}  Rg1 {[%clk 0:00:07]} 102. Rf6 {[%clk 0:00:05]}  Kc5 {[%clk 0:00:06]} 103. Rf5 {[%clk 0:00:05]}  Kd6 {[%clk 0:00:06]} 104. Kf7 {[%clk 0:00:05]}  Ra1 {[%clk 0:00:06]} 105. Rf6+ {[%clk 0:00:04]}  Bxf6 {[%clk 0:00:03]} 106. gxf6 {[%clk 0:00:02]}  Ke5 {[%clk 0:00:03]} 107. Kg7 {[%clk 0:00:01]}  Rg1+ {[%clk 0:00:04]} 108. Kf7 {[%clk 0:00:02]}  Rf1 {[%clk 0:00:04]} 109. Ke7 {[%clk 0:00:02]}  Rxf6 {[%clk 0:00:05]} 110. Kd7 {[%clk 0:00:03]}  Rb6 {[%clk 0:00:06]} 111. Kc7 {[%clk 0:00:03]}  Rh6 {[%clk 0:00:07]} 112. Kd7 {[%clk 0:00:04]}  Rh7+ {[%clk 0:00:07]} 113. Kc6 {[%clk 0:00:04]}  Re7 {[%clk 0:00:07]} 114. Kc5 {[%clk 0:00:05]}  Rc7+ {[%clk 0:00:07]} 115. Kb4 {[%clk 0:00:03]}  Kd6 {[%clk 0:00:08]} 116. Kb3 {[%clk 0:00:03]}  Rc8 {[%clk 0:00:09]} 117. Kb4 {[%clk 0:00:04]}  Rb8+ {[%clk 0:00:09]} 118. Ka3 {[%clk 0:00:03]}  Ke5 {[%clk 0:00:10]} 119. Ka4 {[%clk 0:00:03]}  Kd4 {[%clk 0:00:10]} 120. Ka3 {[%clk 0:00:03]}  Kc5 {[%clk 0:00:11]} 121. Ka4 {[%clk 0:00:02]}  Rb4+ {[%clk 0:00:12]} 122. Ka3 {[%clk 0:00:03]}  Rb1 {[%clk 0:00:12]} 123. Ka4 {[%clk 0:00:03]}  Rg1 {[%clk 0:00:13]} 124. Ka3 {[%clk 0:00:03]}  Rg3+ {[%clk 0:00:14]} 125. Ka4 {[%clk 0:00:04]}  Rh3 {[%clk 0:00:14]} 126. Be6 {[%clk 0:00:04]}  Rf3 {[%clk 0:00:14]} 127. Bd5 {[%clk 0:00:04]}  Re3 {[%clk 0:00:15]} 128. Bb7 {[%clk 0:00:03]}  Re1 {[%clk 0:00:15]} 129. Bd5 {[%clk 0:00:04]}  Re2 {[%clk 0:00:15]} 130. Bb7 {[%clk 0:00:04]}  Re3 {[%clk 0:00:15]} 131. Bd5 {[%clk 0:00:04]}  Re1 {[%clk 0:00:16]} 132. Bb7 {[%clk 0:00:04]}  Ra1+ {[%clk 0:00:16]} 0-1


[Site "https://www.chess.com"]

[Event "Late Titled Tuesday Blitz February 8 2022"]
[White "Tang, Andrew"]
[Black "Pakleza, Zbigniew"]
[WhiteFideId "2059630"]
[BlackFideId "1119290"]
[WhiteElo "2584"]
[BlackElo "2467"]
[Result "1-0"]
[Round "10"]
[TimeControl "180+1"]
[Date "2022.02.08"]
[WhiteClock "0:00:22"]
[BlackClock "0:00:01"]

1. d4 {[%clk 0:03:00]}  d6 {[%clk 0:02:59]} 2. c4 {[%clk 0:02:59]}  e5 {[%clk 0:02:59]} 3. Nf3 {[%clk 0:02:59]}  exd4 {[%clk 0:03:00]} 4. Nxd4 {[%clk 0:02:59]}  g6 {[%clk 0:03:00]} 5. g3 {[%clk 0:02:59]}  Bg7 {[%clk 0:03:01]} 6. Bg2 {[%clk 0:03:00]}  Ne7 {[%clk 0:03:02]} 7. O-O {[%clk 0:03:00]}  O-O {[%clk 0:03:03]} 8. Nc3 {[%clk 0:02:59]}  Nd7 {[%clk 0:03:03]} 9. Qd2 {[%clk 0:02:55]}  Nb6 {[%clk 0:02:55]} 10. b3 {[%clk 0:02:52]}  a5 {[%clk 0:02:56]} 11. Bb2 {[%clk 0:02:46]}  a4 {[%clk 0:02:55]} 12. Rad1 {[%clk 0:02:38]}  Re8 {[%clk 0:02:46]} 13. Rfe1 {[%clk 0:02:33]}  c6 {[%clk 0:02:15]} 14. Qc1 {[%clk 0:02:16]}  Qc7 {[%clk 0:02:02]} 15. Ndb5 {[%clk 0:01:51]}  cxb5 {[%clk 0:01:58]} 16. Nxb5 {[%clk 0:01:52]}  Qc5 {[%clk 0:01:36]} 17. Bxg7 {[%clk 0:01:49]}  Kxg7 {[%clk 0:01:37]} 18. Nxd6 {[%clk 0:01:47]}  Rf8 {[%clk 0:01:19]} 19. Qc3+ {[%clk 0:01:42]}  f6 {[%clk 0:01:14]} 20. b4 {[%clk 0:01:42]}  Qc7 {[%clk 0:00:29]} 21. c5 {[%clk 0:01:35]}  Nd7 {[%clk 0:00:24]} 22. Rd2 {[%clk 0:01:29]}  Ne5 {[%clk 0:00:24]} 23. f4 {[%clk 0:01:25]}  Nf7 {[%clk 0:00:19]} 24. Ne4 {[%clk 0:01:07]}  Nh6 {[%clk 0:00:16]} 25. Red1 {[%clk 0:00:57]}  Bf5 {[%clk 0:00:15]} 26. Nd6 {[%clk 0:00:54]}  Rab8 {[%clk 0:00:15]} 27. h3 {[%clk 0:00:51]}  b6 {[%clk 0:00:14]} 28. g4 {[%clk 0:00:49]}  Be6 {[%clk 0:00:13]} 29. g5 {[%clk 0:00:47]}  Nhg8 {[%clk 0:00:13]} 30. e3 {[%clk 0:00:41]}  bxc5 {[%clk 0:00:12]} 31. bxc5 {[%clk 0:00:42]}  h6 {[%clk 0:00:11]} 32. h4 {[%clk 0:00:42]}  Nf5 {[%clk 0:00:11]} 33. Bh3 {[%clk 0:00:34]}  Qe7 {[%clk 0:00:06]} 34. Bxf5 {[%clk 0:00:33]}  gxf5 {[%clk 0:00:05]} 35. c6 {[%clk 0:00:30]}  hxg5 {[%clk 0:00:05]} 36. hxg5 {[%clk 0:00:30]}  Qc7 {[%clk 0:00:03]} 37. Rg2 {[%clk 0:00:23]}  Kh7 {[%clk 0:00:01]} 38. Kf2 {[%clk 0:00:22]} 1-0


[Site "https://www.chess.com"]